bitfinex-derivatives/quotes_BNBF0:USTF0_20251203
["timestamp","ask_amount","ask_price","bid_price","bid_amount"]
[1764781404205,1.64941644,900.57,899.71,0.68848774]
[1764781404409,1.64941644,900.57,899.72,0.68848774]
[1764781404609,1.64941644,900.57,899.73,0.68848774]
[1764781404908,1.64941644,900.57,899.69,1.366]
[1764781405109,1.64941644,900.57,899.7,0.6885244]
[1764781405306,1.64941644,900.57,899.71,0.6885244]
[1764781405605,1.64941644,900.57,899.72,0.6885244]
[1764781405805,1.64941644,900.58,899.73,0.6885244]
[1764781406009,1.64941644,900.65,899.74,0.6885244]
[1764781406208,1.64941644,900.65,899.69,1.366]
[1764781406209,1.64941644,900.65,899.75,0.6885244]
[1764781406406,1.64941644,900.67,899.76,0.6885244]
[1764781406605,1.64941644,900.67,899.77,0.6885244]
[1764781406807,1.64941644,900.67,899.69,1.366]
[1764781406808,1.64941644,900.68,899.78,0.6885244]
[1764781407005,1.64941644,900.68,899.79,0.6885244]
[1764781407207,1.64941644,900.68,899.8,0.6885244]
[1764781407408,1.64941644,900.68,899.81,0.6885244]
[1764781407607,1.64941644,900.68,899.82,0.6885244]
[1764781407807,1.64941644,900.68,899.83,0.6885244]
[1764781408008,1.64941644,900.68,899.69,1.366]
[1764781408213,1.64941644,900.68,899.7,0.6883725]
[1764781408508,1.64941644,900.68,899.69,1.366]
[1764781408509,1.64941644,900.64,899.71,0.6883725]
[1764781408712,1.64941644,900.64,899.72,0.6883725]
[1764781408913,1.64941644,900.64,899.73,0.6883725]
[1764781409207,1.64941644,900.64,899.74,0.6883725]
[1764781409414,1.64941644,900.64,899.75,0.6883725]
[1764781409614,1.64941644,900.64,899.76,0.6883725]
[1764781409812,1.64941644,900.64,899.77,0.6883725]
[1764781410011,1.64941644,900.64,899.78,0.6883725]
[1764781410210,1.64941644,900.65,899.79,0.6883725]
[1764781410414,1.64941644,900.65,899.69,1.366]
[1764781410612,1.64941644,900.65,899.7,0.6885258]
[1764781410915,1.64941644,900.65,899.71,0.6885258]
[1764781411113,1.64941644,900.65,899.72,0.6885258]
[1764781411311,1.64941644,900.65,899.73,0.6885258]
[1764781411515,1.64941644,900.65,899.74,0.6885258]
[1764781411713,1.64941644,900.65,899.75,0.6885258]
[1764781411913,1.64941644,900.65,899.76,0.6885258]
[1764781412116,1.64941644,900.65,899.77,0.6885258]
[1764781412417,1.64941644,900.65,899.69,1.366]
[1764781412418,1.64941644,900.65,899.78,0.6885258]
[1764781412616,1.64941644,900.65,899.79,0.6885258]
[1764781412817,1.64941644,900.65,899.69,1.366]
[1764781413018,1.64941644,900.66,899.7,0.68846121]
[1764781413213,1.64941644,900.67,899.71,0.68846121]
[1764781413413,1.64941644,900.67,899.72,0.68846121]
[1764781413618,1.64941644,900.69,899.73,0.68846121]
[1764781413918,1.64941644,900.69,899.74,0.68846121]
[1764781414118,1.64941644,900.69,899.75,0.68846121]
[1764781414412,1.64941644,900.74,899.76,0.68846121]
[1764781414618,1.64941644,900.74,899.77,0.68846121]
[1764781414818,1.64941644,900.74,899.78,0.68846121]
[1764781415019,1.64941644,900.74,899.79,0.68846121]
[1764781415314,1.64941644,900.74,899.8,0.68846121]
[1764781415518,1.64941644,900.75,899.81,0.68846121]
[1764781415715,1.64941644,900.75,899.82,0.68846121]
[1764781415919,1.64941644,900.75,899.83,0.68846121]
[1764781416117,1.64941644,900.75,899.84,0.68846121]
[1764781416320,1.64941644,900.75,899.85,0.68846121]
[1764781416517,1.64941644,900.75,899.86,0.68846121]
[1764781416721,1.64941644,900.75,899.87,0.68846121]
[1764781417021,1.64941644,900.75,899.88,0.68846121]
[1764781417223,1.64941644,900.75,899.69,1.366]
[1764781417517,1.64941644,900.75,899.7,0.68847672]
[1764781417721,1.64941644,900.75,899.71,0.68847672]
[1764781417921,1.64941644,900.74,899.72,0.68847672]
[1764781418120,1.64941644,900.74,899.73,0.68847672]
[1764781418321,1.64941644,900.74,899.74,0.68847672]
[1764781418523,1.64941644,900.72,899.75,0.68847672]
[1764781418723,1.64941644,900.72,899.76,0.68847672]
[1764781418923,1.64941644,900.72,899.77,0.68847672]
[1764781419121,1.64941644,900.72,899.78,0.68847672]
[1764781419325,1.64941644,900.72,899.79,0.68847672]
[1764781419522,1.64941644,900.72,899.8,0.68847672]
[1764781419822,1.64941644,900.72,899.81,0.68847672]
[1764781420025,1.64941644,900.72,899.82,0.68847672]
[1764781420320,1.64941644,900.72,899.83,0.68847672]
[1764781420526,1.64941644,900.73,899.71,1.121]
[1764781420825,1.64941644,900.73,899.72,0.68828412]
[1764781421021,1.64941644,900.73,899.73,0.68828412]
[1764781421324,1.64941644,900.73,899.74,0.68828412]
[1764781421522,1.64941644,900.73,899.75,0.68828412]
[1764781421822,1.64941644,900.73,899.76,0.68828412]
[1764781422022,1.64941644,900.73,899.77,0.68828412]
[1764781422219,1.64941644,900.73,899.71,1.121]
[1764781422220,1.64941644,900.73,899.78,0.68828412]
[1764781422425,1.64941644,900.73,899.79,0.68828412]
[1764781422619,1.64941644,900.73,899.8,0.68828412]
[1764781422824,1.64941644,900.73,899.81,0.68828412]
[1764781423024,1.64941644,900.74,899.82,0.68828412]
[1764781423225,1.64941644,900.74,899.83,0.68828412]
[1764781423427,1.64941644,900.74,899.84,0.68828412]
[1764781423626,1.64941644,900.74,899.71,1.121]
[1764781423825,1.64941644,900.74,899.72,0.68815747]
[1764781424027,1.64941644,900.75,899.73,0.68815747]
[1764781424222,1.64941644,900.75,899.74,0.68815747]
[1764781424424,1.64941644,900.75,899.75,0.68815747]
[1764781424724,1.64941644,900.75,899.76,0.68815747]
[1764781424923,1.64941644,900.75,899.77,0.68815747]
[1764781425126,1.64941644,900.75,899.78,0.68815747]
[1764781425323,1.64941644,900.76,899.79,0.68815747]
[1764781425526,1.64941644,900.76,899.8,0.68815747]
[1764781425822,1.64941644,900.76,899.81,0.68815747]
[1764781426027,1.64941644,900.76,899.82,0.68815747]
[1764781426229,1.64941644,900.76,899.83,0.68815747]
[1764781426429,1.64941644,900.76,899.84,0.68815747]
[1764781426626,1.64941644,900.76,899.71,1.121]
[1764781426926,1.64941644,900.76,899.72,0.68803512]
[1764781427126,1.64941644,900.76,899.73,0.68803512]
[1764781427330,1.64941644,900.76,899.74,0.68803512]
[1764781427531,1.64941644,900.76,899.75,0.68803512]
[1764781427830,1.64941644,900.76,899.76,0.68803512]
[1764781428028,1.64941644,900.76,899.77,0.68803512]
[1764781428227,1.64941644,900.76,899.78,0.68803512]
[1764781428423,1.64941644,900.76,899.79,0.68803512]
[1764781428628,1.64941644,900.85,899.8,0.68803512]
[1764781428830,1.64941644,900.85,899.81,0.68803512]
[1764781429031,0.19325335,900.86,899.82,0.68803512]
[1764781429332,0.19325335,900.86,899.83,0.68803512]
[1764781429530,0.19325335,900.86,899.84,0.68803512]
[1764781429733,0.19325335,900.86,899.85,0.68803512]
[1764781429933,0.19325335,900.86,899.86,0.68803512]
[1764781430131,0.19325335,900.86,899.87,0.68803512]
[1764781430434,0.19325335,900.86,899.88,0.68803512]
[1764781430634,0.19325335,900.86,899.89,0.68803512]
[1764781430834,0.19325335,900.86,899.9,0.68803512]
[1764781431031,0.19325335,900.86,899.91,0.68803512]
[1764781431333,0.19325335,900.86,899.92,0.68803512]
[1764781431534,0.19325335,900.86,899.93,0.68803512]
[1764781431734,0.19325335,900.86,899.94,0.68803512]
[1764781431935,0.19325335,900.86,899.95,0.68803512]
[1764781432133,0.19325335,900.86,899.96,0.68803512]
[1764781432329,0.19325335,900.86,899.97,0.68803512]
[1764781432631,0.19325335,900.86,899.98,0.68803512]
[1764781432831,0.19325335,900.86,899.99,0.68803512]
[1764781433131,0.19325335,900.86,900.0,0.68803512]
[1764781433431,0.19325335,900.86,900.01,0.68803512]
[1764781433635,0.19325335,900.86,900.02,0.68803512]
[1764781433834,0.19325335,900.86,900.03,0.68803512]
[1764781434135,0.19325335,900.86,900.04,0.68803512]
[1764781434434,0.19325335,900.86,900.05,0.68803512]
[1764781434634,0.19325335,900.86,900.06,0.68803512]
[1764781434829,0.19325335,900.86,900.07,0.68803512]
[1764781435036,0.19325335,900.86,899.99,1.284]
[1764781435231,0.19325335,900.86,900.0,0.68463916]
[1764781435435,0.19325335,900.86,900.01,0.68463916]
[1764781435637,0.19325335,900.86,900.02,0.68463916]
[1764781435831,0.19325335,900.86,900.03,0.68463916]
[1764781436132,0.19325335,900.86,900.04,0.68463916]
[1764781436335,0.19325335,900.86,900.05,0.68463916]
[1764781436635,0.19325335,900.86,899.99,1.284]
[1764781436938,0.19325335,900.86,900.0,0.68444924]
[1764781437136,0.19325335,900.86,900.01,0.68444924]
[1764781437331,0.19325335,900.86,900.02,0.68444924]
[1764781437535,0.19325335,900.86,900.03,0.68444924]
[1764781437832,0.19325335,900.86,900.04,0.68444924]
[1764781438036,0.19325335,900.86,900.05,0.68444924]
[1764781438337,0.19325335,900.86,899.99,1.284]
[1764781438536,0.19325335,900.86,900.0,0.68429696]
[1764781438830,0.19325335,900.86,900.01,0.68429696]
[1764781439035,0.19325335,900.86,900.02,0.68429696]
[1764781439236,0.19325335,900.86,899.99,1.284]
[1764781439437,0.19325335,900.86,900.0,0.68429289]
[1764781439732,0.19325335,900.86,900.01,0.68429289]
[1764781439936,0.19325335,900.86,900.02,0.68429289]
[1764781440137,0.19325335,900.86,899.99,1.284]
[1764781440338,0.19325335,900.86,900.0,0.68421275]
[1764781440536,0.19325335,900.86,900.01,0.68421275]
[1764781440732,0.19325335,900.86,900.02,0.68421275]
[1764781440937,0.19325335,900.86,900.03,0.68421275]
[1764781441137,0.19325335,900.86,900.04,0.68421275]
[1764781441335,0.19325335,900.86,899.99,1.284]
[1764781441535,0.19325335,900.86,900.0,0.68398081]
[1764781441734,0.19325335,900.86,900.01,0.68398081]
[1764781441939,0.19325335,900.86,900.02,0.68398081]
[1764781442238,1.64941644,901.29,900.03,0.68398081]
[1764781442437,1.64941644,901.29,899.99,1.284]
[1764781442438,0.19319863,901.01,900.04,0.68398081]
[1764781442641,0.19319863,901.01,900.05,0.68398081]
[1764781442842,0.19319863,901.01,900.06,0.68398081]
[1764781443042,0.19319863,901.01,900.07,0.68398081]
[1764781443242,0.19319863,901.01,900.08,0.68398081]
[1764781443442,0.19319863,901.01,900.09,0.68398081]
[1764781443743,0.19319863,901.01,900.1,0.68398081]
[1764781443942,0.19319863,901.01,900.11,0.68398081]
[1764781444143,0.19319863,901.01,900.12,0.68398081]
[1764781444344,0.19319863,901.01,900.13,0.68398081]
[1764781444545,0.19319863,901.01,900.14,0.68398081]
[1764781444744,0.19319863,901.01,900.15,0.68398081]
[1764781445046,0.19319863,901.01,900.16,0.68398081]
[1764781445241,0.19319863,901.01,900.17,0.68398081]
[1764781445444,0.19319863,901.01,900.18,0.68398081]
[1764781445744,0.19319863,901.01,900.19,0.68398081]
[1764781445944,0.19319863,901.01,900.2,0.68398081]
[1764781446142,0.19319863,901.01,900.21,0.68398081]
[1764781446340,0.19319863,901.01,900.22,0.68398081]
[1764781446642,0.19319863,901.01,900.23,0.68398081]
[1764781446841,0.19319863,901.01,900.24,0.68398081]
[1764781447046,1.64941644,901.51,900.25,0.68398081]
[1764781447342,0.19315681,901.14,900.09,1.584]
[1764781447646,0.19315681,901.14,900.1,0.68193542]
[1764781447841,0.19315681,901.14,900.11,0.68193542]
[1764781448041,0.19315681,901.14,900.12,0.68193542]
[1764781448244,0.19315681,901.14,900.13,0.68193542]
[1764781448445,0.19315681,901.14,900.14,0.68193542]
[1764781448645,0.19315681,901.14,900.15,0.68193542]
[1764781448841,0.19315681,901.14,900.16,0.68193542]
[1764781449045,0.19315681,901.14,900.17,0.68193542]
[1764781449243,0.19315681,901.14,900.18,0.68193542]
[1764781449442,0.19315681,901.14,900.19,0.68193542]
[1764781449642,0.19315681,901.14,900.2,0.68193542]
[1764781449840,0.19315681,901.14,900.21,0.68193542]
[1764781450046,0.19315681,901.14,900.22,0.68193542]
[1764781450344,0.19315681,901.14,900.23,0.68193542]
[1764781450543,0.19315681,901.14,900.24,0.68193542]
[1764781450743,0.19315681,901.14,900.25,0.68193542]
[1764781450946,0.19315681,901.14,900.26,0.68193542]
[1764781451147,0.19315681,901.14,900.09,1.584]
[1764781451348,0.19315681,901.14,900.1,0.68151257]
[1764781451548,0.19315681,901.14,900.11,0.68151257]
[1764781451748,0.19315681,901.14,900.12,0.68151257]
[1764781451947,0.19315681,901.14,900.13,0.68151257]
[1764781452244,0.19315681,901.14,900.14,0.68151257]
[1764781452542,0.19315681,901.14,900.15,0.68151257]
[1764781452745,0.19315681,901.14,900.16,0.68151257]
[1764781452945,0.19315681,901.14,900.17,0.68151257]
[1764781453144,0.19315681,901.14,900.18,0.68151257]
[1764781453348,0.19315681,901.14,900.19,0.68151257]
[1764781453643,0.19315681,901.14,900.2,0.68151257]
[1764781453848,0.19315681,901.14,900.21,0.68151257]
[1764781454048,0.19315681,901.14,900.22,0.68151257]
[1764781454248,0.19315681,901.14,900.23,0.68151257]
[1764781454544,0.19315681,901.14,900.24,0.68151257]
[1764781454748,0.19315681,901.14,900.25,0.68151257]
[1764781455044,0.19315681,901.14,900.09,1.584]
[1764781455249,0.19315681,901.14,900.1,0.68131445]
[1764781455448,0.19315681,901.14,900.11,0.68131445]
[1764781455648,0.19315681,901.14,900.12,0.68131445]
[1764781455949,0.19315681,901.14,900.13,0.68131445]
[1764781456249,0.19315681,901.14,900.14,0.68131445]
[1764781456449,0.19315681,901.14,900.15,0.68131445]
[1764781456649,0.19315681,901.14,900.16,0.68131445]
[1764781456949,0.19315681,901.14,900.17,0.68131445]
[1764781457146,0.19315681,901.14,900.18,0.68131445]
[1764781457350,0.19315681,901.14,900.19,0.68131445]
[1764781457546,0.19315681,901.14,900.2,0.68131445]
[1764781457746,0.19315681,901.14,900.21,0.68131445]
[1764781458047,0.19315681,901.14,900.22,0.68131445]
[1764781458246,0.19315681,901.14,900.23,0.68131445]
[1764781458448,0.19315681,901.14,900.24,0.68131445]
[1764781458648,0.19315681,901.14,900.25,0.68131445]
[1764781458848,0.19315681,901.14,900.26,0.68131445]
[1764781459048,0.19315681,901.14,899.99,1.284]
[1764781459352,0.19315681,901.14,900.0,0.68185158]
[1764781459552,0.19315681,901.14,900.01,0.68185158]
[1764781459752,0.19315681,901.14,900.02,0.68185158]
[1764781459953,0.19315681,901.14,900.03,0.68185158]
[1764781460149,0.19315681,901.14,900.04,0.68185158]
[1764781460349,0.19315681,901.14,900.05,0.68185158]
[1764781460552,0.19315681,901.14,900.06,0.68185158]
[1764781460751,0.19315681,901.14,900.07,0.68185158]
[1764781460951,0.19315681,901.14,900.08,0.68185158]
[1764781461154,0.19315681,901.14,900.09,0.68185158]
[1764781461350,0.19315681,901.14,900.07,1.336]
[1764781461351,0.19315681,901.14,900.1,0.68185158]
[1764781461550,0.19315681,901.14,900.11,0.68185158]
[1764781461750,0.19315681,901.14,900.12,0.68185158]
[1764781461951,0.19315681,901.14,900.13,0.68185158]
[1764781462249,0.19315681,901.14,900.14,0.68185158]
[1764781462453,0.19315681,901.14,900.15,0.68185158]
[1764781462652,0.19315681,901.14,900.16,0.68185158]
[1764781462853,0.19315681,901.14,900.17,0.68185158]
[1764781463050,0.19315681,901.14,900.18,0.68185158]
[1764781463251,0.19315681,901.14,900.19,0.68185158]
[1764781463451,0.19315681,901.14,900.2,0.68185158]
[1764781463753,0.19315681,901.14,900.21,0.68185158]
[1764781463950,0.19315681,901.14,900.22,0.68185158]
[1764781464157,0.19315681,901.14,900.07,1.336]
[1764781464353,0.19315681,901.14,900.08,0.68257262]
[1764781464650,0.19315681,901.14,900.09,0.68257262]
[1764781464851,0.19315681,901.14,900.1,0.68257262]
[1764781465052,0.19315681,901.14,900.11,0.68257262]
[1764781465254,0.19315681,901.14,900.12,0.68257262]
[1764781465453,0.19315681,901.14,900.13,0.68257262]
[1764781465660,0.19315681,901.14,900.14,0.68257262]
[1764781465858,0.19315681,901.14,900.15,0.68257262]
[1764781466059,0.19315681,901.14,900.16,0.68257262]
[1764781466265,0.19315681,901.14,900.17,0.68257262]
[1764781466465,0.19315681,901.14,900.18,0.68257262]
[1764781466765,0.19315681,901.14,900.19,0.68257262]
[1764781467066,0.19315681,901.14,900.07,1.336]
[1764781467264,0.19315681,901.14,900.08,0.68348123]
[1764781467566,0.19315681,901.14,900.09,0.68348123]
[1764781467865,0.19315681,901.14,900.1,0.68348123]
[1764781468068,0.19315681,901.14,900.11,0.68348123]
[1764781468261,0.19315681,901.14,900.12,0.68348123]
[1764781468463,0.19315681,901.14,900.13,0.68348123]
[1764781468667,0.19315681,901.14,900.14,0.68348123]
[1764781468863,0.19315681,901.14,900.15,0.68348123]
[1764781469163,0.19315681,901.14,900.16,0.68348123]
[1764781469362,0.19315681,901.14,900.17,0.68348123]
[1764781469666,0.19315681,901.14,900.18,0.68348123]
[1764781469865,0.19315681,901.14,900.19,0.68348123]
[1764781470062,0.19315681,901.14,900.2,0.68348123]
[1764781470266,0.19315681,901.14,900.07,1.336]
[1764781470566,0.19315681,901.14,900.08,0.68368253]
[1764781470766,0.19315681,901.14,900.09,0.68368253]
[1764781470966,0.19315681,901.14,900.1,0.68368253]
[1764781471266,0.19315681,901.14,900.11,0.68368253]
[1764781471461,0.19315681,901.14,900.12,0.68368253]
[1764781471663,0.19315681,901.14,900.13,0.68368253]
[1764781471866,0.19315681,901.14,900.14,0.68368253]
[1764781472063,0.19315681,901.14,900.15,0.68368253]
[1764781472366,0.19315681,901.14,900.16,0.68368253]
[1764781472563,0.19315681,901.14,900.17,0.68368253]
[1764781472761,0.19315681,901.14,900.18,0.68368253]
[1764781472963,0.19315681,901.14,900.19,0.68368253]
[1764781473161,0.19315681,901.14,900.2,0.68368253]
[1764781473366,0.19315681,901.14,900.21,0.68368253]
[1764781473566,0.19315681,901.14,900.22,0.68368253]
[1764781473763,0.19315681,901.14,900.23,0.68368253]
[1764781473967,0.19315681,901.14,900.24,0.68368253]
[1764781474264,0.19315681,901.14,900.25,0.68368253]
[1764781474464,0.19315681,901.14,900.26,0.68368253]
[1764781474663,0.19315681,901.14,900.27,0.68368253]
[1764781474864,0.19315681,901.14,900.28,0.68368253]
[1764781475063,0.19315681,901.14,900.07,1.336]
[1764781475266,0.19315681,901.14,900.08,0.68374168]
[1764781475465,0.19315681,901.14,900.09,0.68374168]
[1764781475763,0.19315681,901.14,900.07,1.336]
[1764781475967,0.19315681,901.14,900.08,0.68358596]
[1764781476264,0.19315681,901.14,900.09,0.68358596]
[1764781476573,0.19315681,901.14,900.1,0.68358596]
[1764781476769,0.19315681,901.14,900.11,0.68358596]
[1764781477064,0.19315681,901.14,900.12,0.68358596]
[1764781477264,0.19315681,901.14,900.13,0.68358596]
[1764781477465,0.19315681,901.14,900.14,0.68358596]
[1764781477668,0.19315681,901.14,900.15,0.68358596]
[1764781477964,0.19315681,901.14,900.16,0.68358596]
[1764781478170,0.19315681,901.14,900.17,0.68358596]
[1764781478364,0.19315681,901.14,900.18,0.68358596]
[1764781478669,0.19315681,901.14,900.19,0.68358596]
[1764781478866,0.19315681,901.14,900.2,0.68358596]
[1764781479069,0.19315681,901.14,900.21,0.68358596]
[1764781479369,0.19315681,901.14,900.22,0.68358596]
[1764781479565,0.19315681,901.14,900.23,0.68358596]
[1764781479770,0.19315681,901.14,900.18,1.255]
[1764781479771,0.19315681,901.14,900.24,0.68358596]
[1764781479970,0.19315681,901.14,900.25,0.68358596]
[1764781480269,0.19315681,901.14,900.26,0.68358596]
[1764781480469,0.19315681,901.14,900.27,0.68358596]
[1764781480671,0.19315681,901.14,900.28,0.68358596]
[1764781480965,0.19315681,901.14,900.29,0.68358596]
[1764781481166,0.19315681,901.14,900.3,0.68358596]
[1764781481366,0.19315681,901.14,900.31,0.68358596]
[1764781481672,0.19315681,901.14,900.32,0.68358596]
[1764781481865,0.19315681,901.14,900.33,0.68358596]
[1764781482167,0.19315681,901.14,900.34,0.68358596]
[1764781482370,0.19315681,901.14,900.35,0.68358596]
[1764781482567,0.19315681,901.14,900.36,0.68358596]
[1764781482870,0.19315681,901.14,900.37,0.68358596]
[1764781483071,0.19315681,901.14,900.38,0.68358596]
[1764781483267,0.19315681,901.14,900.39,0.68358596]
[1764781483567,0.19315681,901.14,900.18,1.255]
[1764781483768,0.19315681,901.14,900.19,0.68428707]
[1764781484069,0.19315681,901.14,900.2,0.68428707]
[1764781484272,0.19315681,901.14,900.21,0.68428707]
[1764781484473,0.19315681,901.14,900.22,0.68428707]
[1764781484768,0.19315681,901.14,900.23,0.68428707]
[1764781484973,0.19315681,901.14,900.24,0.68428707]
[1764781485172,0.19315681,901.14,900.25,0.68428707]
[1764781485373,0.19315681,901.14,900.26,0.68428707]
[1764781485569,0.19315681,901.14,900.27,0.68428707]
[1764781485774,0.19315681,901.14,900.28,0.68428707]
[1764781486073,0.19315681,901.14,900.29,0.68428707]
[1764781486271,0.19315681,901.14,900.3,0.68428707]
[1764781486475,0.19315681,901.14,900.31,0.68428707]
[1764781486676,0.19315681,901.14,900.18,1.255]
[1764781486874,0.19315681,901.14,900.19,0.68511403]
[1764781487170,0.19315681,901.14,900.2,0.68511403]
[1764781487374,0.19315681,901.14,900.21,0.68511403]
[1764781487674,0.19315681,901.14,900.22,0.68511403]
[1764781487869,0.19315681,901.14,900.23,0.68511403]
[1764781488073,0.19315681,901.14,900.24,0.68511403]
[1764781488373,0.19315681,901.14,900.18,1.255]
[1764781488374,0.19315681,901.14,900.25,0.68511403]
[1764781488672,0.19315681,901.14,900.26,0.68511403]
[1764781488869,0.19315681,901.14,900.27,0.68511403]
[1764781489171,0.19315681,901.14,900.18,1.255]
[1764781489474,0.19315681,901.14,900.19,0.68584068]
[1764781489674,0.19315681,901.14,900.2,0.68584068]
[1764781489970,0.19315681,901.14,900.21,0.68584068]
[1764781490174,0.19315681,901.14,900.22,0.68584068]
[1764781490471,0.19315681,901.14,900.23,0.68584068]
[1764781490774,0.19315681,901.14,900.24,0.68584068]
[1764781490975,0.19315681,901.14,900.18,1.255]
[1764781491471,1.64941644,901.11,900.19,0.68642762]
[1764781491670,1.64941644,901.1,900.18,1.255]
[1764781492370,1.64941644,901.09,900.18,1.255]
[1764781492571,1.64941644,901.06,900.18,1.255]
[1764781494070,1.64941644,901.07,900.18,1.255]
[1764781494973,1.64941644,901.06,900.18,1.255]
[1764781496676,1.64941644,901.07,900.18,1.255]
[1764781497276,1.64941644,901.08,900.18,1.255]
[1764781497472,1.64941644,901.07,900.18,1.255]
[1764781498376,1.64941644,901.02,900.18,1.255]
[1764781500273,1.64941644,901.07,900.18,1.255]
[1764781500478,1.64941644,901.08,900.18,1.255]
[1764781500675,1.64941644,901.09,900.18,1.255]
[1764781501175,1.64941644,901.12,900.19,0.68544233]
[1764781501378,1.64941644,901.13,900.2,0.68544233]
[1764781501676,1.64941644,901.13,900.21,0.68544233]
[1764781501977,1.64941644,901.13,900.22,0.68544233]
[1764781502177,1.64941644,901.13,900.18,1.255]
[1764781502376,1.64941644,901.05,900.18,1.255]
[1764781502576,1.64941644,900.9,900.18,1.255]
[1764781502779,1.64941644,900.88,900.18,1.255]
[1764781502980,1.64941644,900.86,900.18,1.255]
[1764781503377,1.64941644,900.87,900.18,1.255]
[1764781503780,1.64941644,900.89,900.18,1.255]
[1764781503978,1.64941644,900.92,900.18,1.255]
[1764781504281,1.64941644,900.93,900.18,1.255]
[1764781504978,1.64941644,900.92,900.18,1.255]
[1764781505278,1.64941644,900.93,900.18,1.255]
[1764781506883,1.64941644,900.91,900.18,1.255]
[1764781507379,1.64941644,900.92,900.18,1.255]
[1764781508284,1.64941644,900.93,900.18,1.255]
[1764781508484,1.64941644,900.82,900.18,1.255]
[1764781509385,1.64941644,900.84,900.18,1.255]
[1764781509586,1.64941644,900.84,900.07,1.336]
[1764781510184,1.64941644,900.85,900.07,1.336]
[1764781511282,1.64941644,900.86,900.07,1.336]
[1764781511586,1.64941644,900.87,900.07,1.336]
[1764781512088,1.64941644,900.86,900.07,1.336]
[1764781512985,1.64941644,900.87,900.07,1.336]
[1764781513587,1.64941644,900.96,900.07,1.336]
[1764781514294,1.64941644,900.97,900.07,1.336]
[1764781514488,1.64941644,900.98,900.07,1.336]
[1764781514790,1.64941644,900.99,900.07,1.336]
[1764781518198,1.64941644,900.97,900.07,1.336]
[1764781518597,1.64941644,901.1,900.07,1.336]
[1764781519298,1.64941644,901.09,900.07,1.336]
[1764781519698,1.64941644,901.11,900.07,1.336]
[1764781520198,1.64941644,901.09,900.07,1.336]
[1764781520398,1.64941644,901.11,900.07,1.336]
[1764781521195,1.64941644,901.11,899.75,0.81740903]
[1764781521398,1.64941644,901.13,899.77,0.81740903]
[1764781521698,0.19315681,901.14,899.8,0.81740903]
[1764781521893,0.19315681,901.14,899.81,0.68429544]
[1764781522093,0.19315681,901.14,899.82,0.68429544]
[1764781522296,0.19315681,901.14,899.8,0.81740903]
[1764781522297,0.19315681,901.14,899.83,0.68429544]
[1764781522594,0.19315681,901.14,899.88,0.81740903]
[1764781522796,0.19315681,901.14,899.89,0.68429544]
[1764781522997,0.19315681,901.14,899.88,0.81740903]
[1764781522998,0.19315681,901.14,899.9,0.68429544]
[1764781523298,0.19315681,901.14,899.91,0.68429544]
[1764781523598,0.19315681,901.14,899.92,0.68429544]
[1764781523800,0.19315681,901.14,899.93,0.68429544]
[1764781523996,0.19315681,901.14,899.94,0.68429544]
[1764781524198,0.19315681,901.14,899.95,0.68429544]
[1764781524397,0.19315681,901.14,900.0,0.81740903]
[1764781524698,0.19315681,901.14,900.01,0.68429544]
[1764781524998,0.19315681,901.14,900.02,1.50170447]
[1764781525197,0.19315681,901.14,900.03,0.68429544]
[1764781525494,0.19315681,901.14,900.04,0.68429544]
[1764781525699,0.19315681,901.14,900.05,0.68429544]
[1764781525999,0.19315681,901.14,900.06,0.68429544]
[1764781526300,0.19315681,901.14,900.07,0.68429544]
[1764781526500,0.19315681,901.14,900.08,0.68429544]
[1764781526696,0.19315681,901.14,900.09,0.68429544]
[1764781526897,0.19315681,901.14,900.1,0.68429544]
[1764781527100,0.19315681,901.14,900.11,0.68429544]
[1764781527300,0.19315681,901.14,900.12,0.68429544]
[1764781527501,0.19315681,901.14,900.13,0.68429544]
[1764781527801,0.19315681,901.14,900.14,0.68429544]
[1764781528098,0.19315681,901.14,900.15,0.68429544]
[1764781528298,0.19315681,901.14,900.16,0.68429544]
[1764781528498,0.19315681,901.14,900.17,0.68429544]
[1764781528698,0.19315681,901.14,900.18,0.68429544]
[1764781528901,0.19315681,901.14,900.19,0.68429544]
[1764781529105,0.19315681,901.14,900.2,0.68429544]
[1764781529400,0.19315681,901.14,900.21,0.68429544]
[1764781529601,0.19315681,901.14,900.22,0.68429544]
[1764781529804,0.19315681,901.14,900.23,0.68429544]
[1764781530100,0.19315681,901.14,900.24,0.68429544]
[1764781530301,0.19315681,901.14,900.25,0.68429544]
[1764781530604,0.19315681,901.14,900.13,0.81740903]
[1764781530605,0.19315681,901.14,900.26,0.68429544]
[1764781530805,0.19315681,901.14,900.27,0.68429544]
[1764781531006,0.19315681,901.14,900.28,0.68429544]
[1764781531202,0.19315681,901.14,900.29,0.68429544]
[1764781531402,0.19315681,901.14,900.3,0.68429544]
[1764781531605,0.19315681,901.14,900.31,0.68429544]
[1764781531805,0.19315681,901.14,900.32,0.68429544]
[1764781532006,0.19315681,901.14,900.33,0.68429544]
[1764781532201,0.19315681,901.14,900.34,0.68429544]
[1764781532406,0.19315681,901.14,900.35,0.68429544]